Cogmind - Beta 13 @@@ ROGUE MODE // 2024.05.22 @ 15:33:22 Player: Sunsh1n3 Result: Destroyed by G-47 Trooper with Particle Gun Performance ------------- Evolutions (0) 0 Regions Visited (1) 200 Robots Destroyed (8) 40 Value Destroyed (240) 240 Prototype IDs (0) 0 Alien Tech Used (0) 0 Bonus (0) 0 TOTAL SCORE: 480 Bonus ------- None Cogmind --------- Core Integrity 0/250 Matter 93/300 Energy 100/100 System Corruption 0% Temperature Cool (9) Movement Core (700) Ox13 Location -10/Materials Parts ------- > --- POWER (1) -------- (None) > --- PROPULSION (2) --- (None) > --- UTILITY (2) ------ Large Storage Unit Large Storage Unit > --- WEAPON (2) ------- (None) > --- INVENTORY (15) --- Ion Engine Small Laser Light Assault Rifle Light Assault Rifle Peak State ------------ > --- POWER ------------ Light Nuclear Core > --- PROPULSION ------- Light Treads Light Treads > --- UTILITY ---------- Large Storage Unit Large Storage Unit > --- WEAPON ----------- Light Assault Rifle Datajack > --- INVENTORY -------- Ion Engine Medium Laser Small Laser [Rating: 9] Favorites ----------- Power Ion Engine Engine Ion Engine Power Core Light Nuclear Core Propulsion Light Treads Treads Light Treads Leg Aluminum Leg Utility Large Storage Unit Storage Large Storage Unit Weapon Light Assault Rifle Energy Gun Medium Laser Ballistic Gun Light Assault Rifle Special Melee Weapon Datajack Build | -11 -10 ------- Run | Yrd Mat Slots Evolved . | . . Power . | . . Propulsion . | . . Utility . | . . Weapon . | . . Parts Attached 22 | 7 15 Power 2 | 1 1 Engine 1 | 1 . Core 1 | . 1 Reactor . | . . Propulsion 5 | 2 3 Treads 3 | 2 1 Leg 2 | . 2 Wheel . | . . Hover . | . . Flight . | . . Utility 6 | 1 5 Device . | . . Storage 6 | 1 5 Processor . | . . Hackware . | . . Protection . | . . Artifact . | . . Weapon 9 | 3 6 Energy Gun 4 | 2 2 Energy Cannon . | . . Ballistic Gun 3 | 1 2 Ballistic Cannon . | . . Launcher . | . . Special Weapon . | . . Impact Weapon . | . . Slashing Weapon . | . . Piercing Weapon . | . . Special Melee Weapon 2 | . 2 Unidentified Prototypes . | . . Parts Lost 9 | . 9 Power 1 | . 1 Propulsion 4 | . 4 Utility . | . . Weapon 4 | . 4 Highest Loss Streak 6 | . 6 To Critical Strikes . | . . Average Slot Usage (%) 92 | . 92 Engine 7 | . 7 Core 2 | . 2 Treads 20 | . 20 Leg 5 | . 5 Storage 27 | . 27 Energy Gun 7 | . 7 Ballistic Gun 12 | . 12 Special Melee Weapon 7 | . 7 Naked Turns . | . . Heaviest Build 108 | 13 108 Greatest Support 40 | 40 40 Greatest Overweight (x) 13 | 1 13 Average Overweight (x) 1 | . 1 Largest Inventory Capacity 25 | 8 25 Average Capacity 14 | 7 15 Most Carried 5 | 3 5 Average Carried 2 | . 2 Final Capacity 15 | 8 15 Final Carried 4 | 1 4 Class Distribution -------------------- 100% | Mutant Dominant Class ---------------- Mutant | -10/Materials Resources | -11 -10 ----------- Run | Yrd Mat Matter Collected 245 | 145 100 Remotely . | . . Salvage Created 248 | . 248 Parts 18 | . 18 Haulers Intercepted . | . . Recyclers Shooed . | . . Parts Field Recycled . | . . Retrieved Matter . | . . Parts Self-Destructed . | . . Prevented . | . . Kills | -11 -10 ------- Run | Yrd Mat Combat Hostiles Destroyed 5 | . 5 Guns 4 | . 4 AOE 1 | . 1 Classes Destroyed 3 | . 3 Builder 1 | . 1 Watcher 2 | . 2 Grunt 5 | . 5 Best Kill Streak 3 | . 3 Combat Bots Only 2 | . 2 Max Kills in Single Turn 2 | . 2 Gunslinging . | . . Exploded 1 | . 1 Melee . | . . Uniques/NPCs Destroyed . | . . Combat | -11 -10 -------- Run | Yrd Mat Hostile Shots Fired 147 | . 147 Missed 40 | . 40 Damage Taken 1418 | . 1418 Core 264 | . 264 Absorbed by Shields . | . . Core Remaining (%) 100 | 100 . Volleys Fired 81 | . 81 Largest 2 | . 2 Hottest 70 | . 70 Shots Fired 98 | . 98 Gun 98 | . 98 Cannon . | . . Launcher . | . . Special . | . . Kinetic 79 | . 79 Thermal 19 | . 19 Explosive . | . . Electromagnetic . | . . Robot Hit Streak 10 | . 10 Robot Miss Streak 5 | . 5 Penetration Max . | . . Secondary Targets 1 | . 1 Max Gunslinging Chain 1 | . 1 Shots Hit Robots 64 | . 64 Core Hits 23 | . 23 Critical Kills . | . . Critical Parts Destroyed . | . . Critical Strikes 1 | . 1 Burn 1 | . 1 Melee Attacks 9 | . 9 Impact . | . . Slashing . | . . Piercing . | . . Sneak Attacks 6 | . 6 Combat Hostiles . | . . Follow-up Attacks . | . . Damage Inflicted 636 | . 636 Guns 532 | . 532 Cannons . | . . Explosions 97 | . 97 Melee . | . . Ramming 7 | . 7 Kinetic 388 | . 388 Thermal 144 | . 144 Explosive 97 | . 97 Electromagnetic . | . . Impact . | . . Slashing . | . . Piercing . | . . Highest Corruption . | . . Average Corruption . | . . Corruption Purged . | . . Corruption Blocked . | . . Overload Shots . | . . Overflow Damage . | . . Projectiles . | . . Explosions . | . . Melee . | . . Knockbacks . | . . Impact . | . . Kinetic . | . . Secondary . | . . Self-Inflicted Damage 74 | . 74 Shots 1 | . 1 Rammed . | . . Targets Rammed 1 | . 1 Kicked 1 | . 1 Crushed . | . . Highest Temperature 83 | . 83 Average Temperature 25 | . 25 Received Heat Transfer 759 | . 759 Siege Activations . | . . Robots Corrupted . | . . Combat Hostiles . | . . Parts Fried . | . . Impact Corruptions . | . . Robots Melted . | . . Combat Hostiles . | . . Parts Melted 2 | . 2 Heat Transferred 458 | . 458 Parts Sabotaged . | . . Parts Stolen . | . . Parts Stripped . | . . Power Chain Reactions . | . . Alert | -11 -10 ------- Run | Yrd Mat Peak Influence 143 | . 143 Initial . | . . Average 39 | . 46 Maximum Alert Level . | . . Low Security (%) 100 | 100 100 Level 1 . | . . Level 2 . | . . Level 3 . | . . Level 4 . | . . Level 5 . | . . High Security . | . . Max Security . | . . Squads Dispatched 2 | . 2 Investigation 1 | . 1 Extermination . | . . Reinforcement 1 | . 1 Assault . | . . Garrison . | . . Intercept . | . . Searches Triggered . | . . Construction Impeded . | . . Haulers Reinforced . | . . Active Scanning Responses . | . . Cargo Convoy Interrupts . | . . Stealth | -11 -10 --------- Run | Yrd Mat Distress Signals 1 | . 1 Communications Jammed . | . . Distress Signals . | . . Times Spotted 21 | . 21 Peak Tracking Total 4 | . 4 Tactical Retreats . | . . Traps | -11 -10 ------- Run | Yrd Mat Traps Triggered . | . . Indirectly . | . . Trap Hack Attempts . | . . Triggered . | . . Disarmed . | . . Reprogrammed . | . . Reused . | . . Traps Extracted . | . . Installed . | . . Triggered . | . . Machines | -11 -10 ---------- Run | Yrd Mat Machines Disabled 2 | . 2 Max in Single Turn 1 | . 1 Machines Repaired . | . . Machines Dismantled . | . . Machines Sabotaged . | . . Overloaded Fab Kills . | . . Hacking | -11 -10 --------- Run | Yrd Mat Machines Accessed 1 | . 1 Terminals 1 | . 1 Fabricators . | . . Repair Stations . | . . Recycling Units . | . . Scanalyzers . | . . Garrison Access . | . . Total Hacks 5 | . 5 Successful 2 | . 2 Failed 3 | . 3 Catastrophic . | . . Database Lockouts . | . . Manual . | . . Terminals 5 | . 5 Fabricators . | . . Repair Stations . | . . Recycling Units . | . . Scanalyzers . | . . Garrison Access . | . . Terminal Hacks 2 | . 2 Record 1 | . 1 Hauler Manifests 1 | . 1 Fabricator Hacks . | . . Repair Station Hacks . | . . Recycling Unit Hacks . | . . Scanalyzer . | . . Garrison Access Hacks . | . . Unauthorized Hacks . | . . Terminals . | . . Fabricators . | . . Repair Stations . | . . Recycling Units . | . . Scanalyzers . | . . Garrison Access . | . . Data Cores Recovered . | . . Used . | . . Hacking Detections 1 | . 1 Full Trace Events 1 | . 1 Feedback Events . | . . Feedback Blocked . | . . Robot Schematics Acquired . | . . Robots Built . | . . Authchips . | . . Time . | . . Total Robot Build Rating . | . . Part Schematics Acquired . | . . Parts Built . | . . Authchips . | . . Time . | . . Total Part Build Rating . | . . Parts Repaired . | . . Time . | . . Parts Recycled . | . . Recycled Matter . | . . Retrieved Matter . | . . Retrieved Components . | . . Parts Scanalyzed . | . . Part Schematics Acquired . | . . Parts Damaged . | . . Bothacking | -11 -10 ------------ Run | Yrd Mat Used RIF Installer . | . . Robots Hacked 4 | . 4 Non-combat 3 | . 3 Combat 1 | . 1 Robot Hacks Applied 7 | . 7 parse_system 3 | . 3 no_distress 3 | . 3 find_station 1 | . 1 Relay Couplers Released . | . . Fabnet Peak Effective % . | . . Robots Rewired . | . . Allies Hacked . | . . Hacks Repelled . | . . Allies | -11 -10 -------- Run | Yrd Mat Total Allies . | . . Largest Group . | . . Highest-Rated Group . | . . Highest-Rated Ally . | . . Total Orders . | . . Ally Attacks . | . . Total Damage . | . . Kills . | . . Allies Corrupted . | . . Allies Melted . | . . Intel | -11 -10 ------- Run | Yrd Mat Robot Analysis Total . | . . Derelict Logs Recovered . | . . Drone Launches . | . . Drone Recoveries . | . . Exploration | -11 -10 ------------- Run | Yrd Mat Turns Passed 1138 | 158 980 Spaces Moved 406 | 95 311 Core 18 | 16 2 Treads 320 | 79 241 Legs 68 | . 68 Wheels . | . . Hover . | . . Flight . | . . Fastest Speed 50 | 50 160 Average Speed 223 | 146 247 Slowest Speed 700 | 160 700 Overloaded Moves . | . . Propulsion Burnouts . | . . Robots Hopped . | . . Cave-ins Triggered . | . . Exploration Rate (%) 22 | 5 39 Regions Visited 1 Branch Regions . Pre-discovered Areas . | . . Known Exits Taken . | . . Unknown Exits Taken 1 | 1 . Scrap Searched . | . . Spaces Dug . | . . Terrain Destroyed 10 | . 10 Melee . | . . Projectile . | . . AOE 10 | . 10 Terrain Rammed . | . . Walls Destroyed . | . . Machines Disabled . | . . Actions | -11 -10 --------- Run | Yrd Mat Total 548 | 114 434 Wait 5 | 4 1 Move 405 | 94 311 Hop . | . . Pick Up 20 | 8 12 Fast Attach . | . . Attach 12 | 6 6 Detach . | . . Swap 10 | 1 9 Drop 5 | 1 4 Fire 81 | . 81 Melee 9 | . 9 Ram . | . . Kick 1 | . 1 Crush . | . . Escape Stasis . | . . Rewire . | . . Trap . | . . Miscellaneous . | . . Route ------- -11/Scrapyard -10/Materials (discovered 1 exit: [*Mat]) History --------- Turn | Location | Event 11 | -11/Scrapyard | Discovered new exit (range 15) 159 | -11/Scrapyard | Entered Materials 317 | -10/Materials | Build established: Mutant 818 | -10/Materials | Discovered new exit (range 14) 888 | -10/Materials | Lost 3 parts (1p1n1w) 1100 | -10/Materials | Core integrity fell below 50% 1119 | -10/Materials | Core integrity fell below 20% 1139 | -10/Materials | Destroyed by G-47 Trooper with Particle Gun Last Messages --------------- K-01 Serf collects debris. M-13 Machinist repairs G-47 Trooper. K-01 Serf destroyed. Acquired Lgt. Assault Rifle. K-01 Serf collects debris. Med. Laser destroyed. K-01 Serf collects debris. Acquired Lgt. Assault Rifle. K-01 Serf collects debris. Aluminum Leg destroyed. Acquired Lgt. Assault Rifle. K-01 Serf collects debris. Aluminum Leg destroyed. K-01 Serf collects debris. U-05 Engineer builds a Door. K-01 Serf collects debris. M-13 Machinist repairs G-47 Trooper. M-13 Machinist distress signal failed. Lgt. Treads destroyed. Lgt. Assault Rifle destroyed. Map ----- +----------------------------------------------------+ | ?????????????????????????????????????????????????? | | ?????????????????????????????????????????????????? | | ?????????????????????????????????????????????????? | | ?????????????????????????????????????????????????? | | ?????????????????????????????????????????????????? | | ?????????????????????????????????????????????????? | | ?????????????????????????????????????????????????? | | ?????????????????????????????????????????????????? | | ?????????????????????????????????????????????????? | | ?????????????????????????????????????????????????? | | ??????????????????????????#??????????????????????? | | ?????????????????????????! ?????????????????????? | | ????????????????????????? ???#??? ?????????????? | | ?????????????????????????? ?? #### ???????????? | | ?????????????????????????? ?? +??????????? | | ?????????????????????????? ?? #??????????? | | ?????????????????????????? ?? #??????????? | | ?????????????????????????? ?#a #??????????? | | ???????????????????????####+##= #??????????? | | ???????????????????????# %=%! ???????????? | | ???????????????????????# !k! +??????????? | | ???????????????????????# !%! """ #??????????? | | ???????????????????????# *g """ #??????????? | | ???????????????????????# """ #??????????? | | ??????????????##########[ #??????????? | | ??????????????# #[@ #???#??????? | | ??????????????# """ #[[[ """ #?? #??????? | | ??????????????# """ #k """ ### ##?????? | | ??????????????# """ # """ #?????? | | ??????????????# + gg #?????? | | ??????????????# """ #= +?????? | | ??????????????# """ #% #?????? | | ??????????????# """ # #?????? | | ??????????????# # #?????? | | ??????????############## #?????? | | ??????????# #### u #?????? | | ??????????# ! + ####### ######?????? | | ??????????# ###### #### ## #??????????? | | ??????????# #????# #??##### #??????????? | | ??????????# """ """ #????# #??????# #??????????? | | ??????????# """ """ #????#+######## ###########? | | ??????????# """ """ #????# # # """ #? | | ??????????# #????# # # "T" #? | | ??????????#####+#####????# # # #? | | ?????????????# ######### # # #? | | #########????# # # """ + + """ """ #? | | # #????# # """ # """"" # # """ """ #? | | # " #????# # """ # """"" # # """ """ #? | | # """ ###### # """ !# """"" # #=[^% #? | | # """ # # ! # """ # ##+#######?? | +----------------------------------------------------+ Best States ------------- Heat Dissipation 25 Energy Generation 14 Energy Capacity 250 Matter Stores 195 Matter Capacity 300 Sight Range 16 Terrain Scan Density 10 Evasion (%) 40 Recoil Reduction 2 Item Schematics ----------------- None Robot Schematics ------------------ None Fabricated ------------ Nothing Alien Tech Used ----------------- None Achievements -------------- None Challenges ------------ None Game ------ Seed HellfireTrapSource Manual? 0 Play Time 00:10:45 Cumulative 1.7 hours Start 2024.05.22 @ 15:23:40 End 2024.05.22 @ 15:33:22 Sessions 1 Manual Loads 0 Difficulty Rogue Special Mode None Game No. 5 Rogue 5 Adventurer 0 Explorer 0 Win Type - Total 0 Types 0/0/0/0/0/0/0/0/0 Lore% 4 Gallery% 5 Achievement% 5 Wizard Run 0 Options --------- Layout 1 ASCII 0 Keyboard 0 Movement Mouse Keybinds 0 Fullscreen 2 Font 24/Smallcaps Map View 50x35 Zoom Use 0% Tactical HUD 0 Map Filters NONE Filters NONE Steam 1 RUN: 6a502fb0-084c-4dd0-a6b5-0cfebe383ff3